bitfinex-derivatives/quotes_ETHF0:USTF0_20241005
["timestamp","ask_amount","ask_price","bid_price","bid_amount"]
[1728110147061,0.69111,2421.3,2421.1,1.75413928]
[1728110147358,1.52241,2421.3,2421.1,1.75413928]
[1728110147761,1.52241,2421.3,2421.1,0.67473]
[1728110148155,1.52241,2421.3,2421.1,0.3856]
[1728110148755,1.2333,2421.3,2421.1,0.3856]
[1728110148957,1.2333,2421.3,2421.1,1.75413928]
[1728110149262,1.52241,2421.3,2421.1,0.67473]
[1728110149769,1.52241,2421.3,2421.1,0.3856]
[1728110150262,1.52241,2421.3,2421.0,3.05844928]
[1728110151660,1.52241,2421.3,2421.1,0.55941702]
[1728110151963,1.52241,2421.3,2421.0,3.05844928]
[1728110152168,1.52241,2421.3,2421.1,0.5594347]
[1728110152362,1.52241,2421.3,2421.2,1.491634]
[1728110152865,1.52241,2421.3,2421.0,3.31272163]
[1728110153061,2.41241,2421.3,2421.2,1.49162757]
[1728110153262,0.28912,2421.2,2421.0,0.4128]
[1728110153460,0.28912,2421.2,2421.1,1.49172015]
[1728110156452,0.28912,2421.2,2421.0,0.4128]
[1728110156660,0.28912,2421.2,2421.1,1.49172918]
[1728110157463,1.17912,2421.2,2421.1,1.49172918]
[1728110157673,1.17912,2421.2,2421.1,0.57374199]
[1728110160961,4.38692,2421.2,2421.1,0.57374199]
[1728110162263,1.17912,2421.2,2421.1,0.57374199]
[1728110162463,0.28914,2421.1,2420.8,0.28917]
[1728110162769,0.28914,2421.1,2420.9,1.49171594]
[1728110162770,0.7843,2421.0,2420.9,1.49171594]
[1728110162966,1.2105,2421.0,2420.9,1.49171594]
[1728110166373,2.1005,2421.0,2420.9,1.49171594]
[1728110168677,2.1005,2421.0,2420.9,1.49133221]
[1728110169174,2.1005,2421.0,2420.8,0.28917]
[1728110169374,2.1005,2421.0,2420.9,1.49130652]
[1728110169887,2.1005,2421.0,2420.9,1.78045173]
[1728110170378,1.2105,2421.0,2420.9,0.28916]
[1728110170680,1.2105,2421.0,2420.9,1.78042471]
[1728110174691,1.2105,2421.0,2420.9,2.19472471]
[1728110174896,1.2105,2421.0,2420.9,1.90556471]
[1728110175893,1.2105,2421.0,2420.9,1.90541233]
[1728110176389,1.2105,2421.0,2420.9,1.90541633]
[1728110177587,1.2105,2421.0,2420.9,2.19457633]
[1728110177782,4.0978,2421.2,2420.9,1.90541633]
[1728110177783,3.2078,2421.2,2420.9,1.90541633]
[1728110178092,0.89,2421.3,2420.9,1.90541633]
[1728110178093,1.96582,2421.3,2421.0,1.78009994]
[1728110178394,1.96582,2421.3,2421.1,0.57350628]
[1728110178590,1.96582,2421.3,2421.2,0.57350628]
[1728110178893,6.09622,2421.3,2421.2,0.57350628]
[1728110180191,6.09622,2421.3,2421.2,0.57334353]
[1728110183395,6.09622,2421.3,2421.0,0.71164]
[1728110183591,1.96582,2421.3,2421.2,0.57330263]
[1728110183795,1.96582,2421.3,2421.2,0.57331785]
[1728110183994,6.09622,2421.3,2421.2,0.57331785]
[1728110186793,6.09622,2421.3,2421.0,0.71164]
[1728110186989,6.09622,2421.3,2421.2,0.57307208]
[1728110186990,1.96582,2421.3,2421.2,0.57307208]
[1728110187393,6.09622,2421.3,2421.2,0.57307208]
[1728110189598,1.96582,2421.3,2421.2,0.57307208]
[1728110190289,1.96582,2421.3,2421.0,0.4225]
[1728110190290,1.6767,2421.3,2421.0,0.4225]
[1728110190495,0.28912,2421.2,2421.1,1.49000888]
[1728110193400,0.7867,2421.3,2421.1,1.77913888]
[1728110193701,3.5954,2421.5,2421.2,2.37990821]
[1728110193903,0.096,2421.8,2421.3,9.71730821]
[1728110194105,0.28904,2421.9,2421.7,0.89]
[1728110194502,0.28904,2421.9,2421.8,0.57235465]
[1728110196302,3.2078,2422.2,2421.8,5.59115465]
[1728110196603,3.2078,2422.2,2422.0,0.28903]
[1728110196904,1.19678,2422.4,2422.1,0.4064]
[1728110196905,1.10078,2422.4,2422.1,0.4064]
[1728110197100,0.8118,2422.4,2422.1,1.2964]
[1728110197301,7.3938,2422.7,2422.5,0.28896]
[1728110197302,3.2078,2422.7,2422.5,0.28896]
[1728110197507,3.2078,2423.2,2422.6,7.3358]
[1728110197704,0.986,2423.5,2423.0,0.89]
[1728110197906,0.28888,2423.3,2423.0,0.89]
[1728110198302,4.90808,2423.7,2423.0,0.89]
[1728110198303,0.28887,2423.4,2423.0,0.89]
[1728110198507,0.89,2423.5,2423.1,0.89]
[1728110198704,0.28886,2423.4,2423.0,0.89]
[1728110199007,0.89,2423.1,2422.8,0.385]
[1728110199209,1.2302,2423.8,2422.5,0.385]
[1728110199210,0.28896,2422.6,2422.5,0.385]
[1728110199406,0.89,2422.6,2422.2,0.3988]
[1728110199704,0.3852,2422.5,2422.2,0.3988]
[1728110199903,0.3852,2422.5,2422.2,0.6878]
[1728110200109,0.67417,2422.5,2422.2,0.6878]
[1728110201401,0.3852,2422.5,2422.2,0.6878]
[1728110201608,0.3852,2422.5,2422.3,0.28899]
[1728110202608,0.3852,2422.5,2422.2,0.6878]
[1728110204313,0.67417,2422.5,2422.2,0.6878]
[1728110204903,0.28898,2422.4,2422.1,6.60890985]
[1728110205108,0.28898,2422.4,2422.1,5.71990985]
[1728110205308,0.28898,2422.4,2422.1,6.60890985]
[1728110205813,0.67417,2422.5,2422.2,0.289]
[1728110206611,0.3852,2422.5,2422.3,1.17899]
[1728110207503,0.28895,2422.7,2422.4,0.28897]
[1728110207911,0.28895,2422.7,2422.4,0.69377]
[1728110209419,2.00834,2422.8,2422.4,0.69377]
[1728110209813,1.11834,2422.8,2422.4,0.4048]
[1728110210014,2.00834,2422.8,2422.4,0.4048]
[1728110210316,2.00834,2422.8,2422.4,0.69377]
[1728110210615,0.28894,2422.7,2422.4,0.69377]
[1728110211818,1.7194,2422.8,2422.4,0.4048]
[1728110212119,1.7194,2422.8,2422.6,0.28895]
[1728110212120,0.8294,2422.8,2422.6,0.28895]
[1728110212324,0.8294,2422.8,2422.6,1.17895]
[1728110212911,1.11833,2422.8,2422.6,1.17895]
[1728110214017,0.8294,2422.8,2422.6,1.17895]
[1728110214523,0.8294,2422.8,2422.6,0.89]
[1728110214726,0.8294,2422.8,2422.7,0.28894]
[1728110215612,0.4082,2422.8,2422.7,0.28894]
[1728110215813,0.69672,2423.0,2422.9,0.28892]
[1728110215814,0.4078,2423.0,2422.9,0.28892]
[1728110216122,0.7838,2423.1,2422.9,1.17892]
[1728110216422,1.0727,2423.1,2422.9,1.17892]
[1728110217221,0.7838,2423.1,2422.9,1.17892]
[1728110217416,3.49669,2423.2,2422.9,5.30611]
[1728110217618,0.2889,2423.1,2422.9,1.17891]
[1728110218416,0.2889,2423.1,2422.9,5.30611]
[1728110218616,1.2309,2423.3,2422.9,5.0172]
[1728110218821,1.2309,2423.3,2422.9,1.17892]
[1728110218822,0.2889,2423.1,2422.9,1.17892]
[1728110219422,1.2309,2423.3,2422.9,5.30612]
[1728110219729,0.28889,2423.2,2422.9,1.17892]
[1728110220729,0.2889,2423.1,2422.9,1.17892]
[1728110220924,2.1209,2423.3,2422.8,1.292]
[1728110221117,0.2889,2423.1,2422.9,0.28892]
[1728110221517,0.2889,2423.1,2422.8,2.181]
[1728110221727,0.2889,2423.1,2422.9,0.28892]
[1728110222427,0.28891,2423.0,2422.8,1.58093]
[1728110223022,0.28889,2423.2,2422.9,0.28891]
[1728110223225,0.2889,2423.1,2422.9,0.28891]
[1728110225620,1.2309,2423.3,2422.9,0.28891]
[1728110225829,0.2889,2423.1,2422.9,0.28891]
[1728110226023,1.2309,2423.3,2422.8,1.292]
[1728110226332,0.2889,2423.1,2422.9,0.28891]
[1728110226832,1.2309,2423.3,2422.8,1.292]
[1728110227019,0.2889,2423.1,2422.9,0.28892]
[1728110227222,0.28889,2423.2,2423.0,0.2889]
[1728110227435,1.2309,2423.3,2423.0,0.89]
[1728110227626,0.814,2423.3,2423.2,3.49668]
[1728110227935,5.00408,2423.7,2423.3,0.28886]
[1728110227936,0.28885,2423.5,2423.3,0.28886]
[1728110228234,0.28885,2423.5,2423.3,1.17887]
[1728110228638,1.213,2423.6,2423.3,0.89]
[1728110229331,0.28886,2423.5,2423.3,0.89]
[1728110230542,0.28886,2423.5,2423.3,1.17887]
[1728110230727,0.28886,2423.5,2423.3,0.89]
[1728110231227,1.50185,2423.6,2423.3,1.17887]
[1728110231622,1.50185,2423.6,2423.3,0.89]
[1728110231824,1.50184,2423.6,2423.3,1.17887]
[1728110232133,1.213,2423.6,2423.3,0.89]
[1728110232331,0.28885,2423.5,2423.3,0.89]
[1728110232536,0.28885,2423.5,2423.3,1.17887]
[1728110232837,0.28885,2423.5,2423.3,0.89]
[1728110233034,0.28885,2423.5,2423.3,1.17887]
[1728110233632,0.28885,2423.5,2423.3,0.89]
[1728110233828,1.50184,2423.6,2423.3,1.17887]
[1728110234034,0.28885,2423.5,2423.3,1.17887]
[1728110234233,0.28885,2423.5,2423.3,0.89]
[1728110234435,0.28885,2423.5,2423.3,1.17887]
[1728110234836,1.50185,2423.6,2423.3,1.17887]
[1728110235030,1.213,2423.6,2423.3,1.17887]
[1728110235229,0.28885,2423.5,2423.3,1.17887]
[1728110235828,0.28885,2423.5,2423.3,0.89]
[1728110236545,0.28885,2423.5,2423.3,1.17887]
[1728110237043,1.213,2423.6,2423.3,0.89]
[1728110237236,0.28886,2423.4,2423.3,0.89]
[1728110238833,1.213,2423.6,2423.2,0.89]
[1728110239034,0.28885,2423.5,2423.3,0.89]
[1728110239235,1.213,2423.6,2423.4,0.28886]
[1728110239429,1.213,2423.6,2423.1,1.282]
[1728110239430,1.50185,2423.6,2423.5,0.89]
[1728110244837,1.50185,2423.6,2423.5,1.45991741]
[1728110245038,1.50185,2423.6,2423.5,0.89]
[1728110245537,1.213,2423.6,2423.5,0.89]
[1728110245740,1.50184,2423.6,2423.5,0.89]
[1728110246241,1.213,2423.6,2423.5,1.17885]
[1728110246640,1.213,2423.6,2423.5,0.89]
[1728110247036,1.213,2423.6,2423.5,1.17885]
[1728110247744,1.213,2423.6,2423.5,1.74867839]
[1728110248438,1.50184,2423.6,2423.5,0.89]
[1728110248937,0.7958,2423.6,2423.5,1.17885]
[1728110254642,0.7958,2423.6,2423.5,1.56615]
[1728110255932,0.7958,2423.6,2423.5,2.13637337]
[1728110257749,1.08464,2423.6,2423.5,2.13421305]
[1728110258650,0.7958,2423.6,2423.5,2.13421305]
[1728110261051,1.08464,2423.6,2423.5,1.56615]
[1728110261347,0.7958,2423.6,2423.5,2.13448541]
[1728110262849,0.7958,2423.6,2423.5,1.45833541]
[1728110263052,0.7958,2423.6,2423.3,1.13533851]
[1728110263053,0.28886,2423.4,2423.3,1.13533851]
[1728110263249,0.3877,2423.5,2423.3,3.52139065]
[1728110263449,0.67656,2423.5,2423.4,0.56171198]
[1728110265654,0.67656,2423.5,2423.3,1.17887]
[1728110265854,0.67656,2423.5,2423.4,0.56194004]
[1728110270271,0.67656,2423.5,2423.4,1.46150919]
[1728110270469,0.67656,2423.5,2423.4,1.45194004]
[1728110271367,0.67656,2423.5,2423.4,2.35204469]
[1728110271576,0.67656,2423.5,2423.4,2.35206717]
[1728110271866,0.67656,2423.5,2423.4,0.89]
[1728110272067,0.67656,2423.5,2423.4,2.35208158]
[1728110273171,0.3877,2423.5,2423.4,2.64094158]
[1728110274367,0.67655,2423.5,2423.4,2.64094158]
[1728110274670,0.67655,2423.5,2423.4,1.17886]
[1728110274966,0.67655,2423.5,2423.4,2.63548939]
[1728110275877,0.67655,2423.5,2423.4,2.34662939]
[1728110276168,0.67655,2423.5,2423.4,2.63548939]
[1728110276367,0.67655,2423.5,2423.4,2.34662939]
[1728110276967,0.67655,2423.5,2423.4,1.45662939]
[1728110277173,0.67655,2423.5,2423.4,2.34662939]
[1728110277979,0.3877,2423.5,2423.4,0.89]
[1728110278168,0.67655,2423.5,2423.4,2.34685899]
[1728110278375,0.3877,2423.5,2423.4,2.63571899]
[1728110278973,0.67655,2423.5,2423.4,1.45685899]
[1728110279469,0.67655,2423.5,2423.4,1.74571899]
[1728110279674,0.67655,2423.5,2423.4,1.45685899]
[1728110280274,0.67655,2423.5,2423.4,1.74571899]
[1728110280577,0.67655,2423.5,2423.4,1.45685899]
[1728110281475,0.67655,2423.5,2423.4,0.28886]
[1728110281671,0.67655,2423.5,2423.4,1.45120266]
[1728110283572,0.67655,2423.5,2423.3,1.17887]
[1728110283973,0.67655,2423.5,2423.4,1.45126546]
[1728110284984,5.69295,2423.5,2423.4,0.55817902]
[1728110285186,4.80295,2423.5,2423.4,0.55817902]
[1728110287487,0.67655,2423.5,2423.4,0.55817902]
[1728110287683,4.80295,2423.5,2423.4,0.55817902]
[1728110288388,0.67655,2423.5,2423.4,0.55817902]
[1728110289080,4.80295,2423.5,2423.4,0.55817902]
[1728110291378,6.12624,2423.5,2423.0,5.17720928]
[1728110291580,0.3877,2423.5,2423.2,0.89]
[1728110291889,0.28887,2423.4,2423.3,0.55794965]
[1728110293582,0.28887,2423.4,2423.3,0.55787608]
[1728110295183,4.41527,2423.4,2423.3,0.55787608]
[1728110295386,0.28887,2423.4,2423.3,0.55787608]
[1728110295782,4.1264,2423.4,2423.3,0.96137608]
[1728110297091,4.1264,2423.4,2423.3,1.85399183]
[1728110297290,0.67655,2423.5,2423.3,0.96137608]
[1728110297496,0.67655,2423.5,2423.4,0.55787608]
[1728110297695,4.80295,2423.5,2423.4,0.55787608]
[1728110300695,4.5141,2423.5,2423.2,0.89]
[1728110300890,0.28887,2423.4,2423.3,0.55796263]
[1728110302287,4.1264,2423.4,2423.0,1.1789]
[1728110302490,0.8298,2423.3,2423.2,1.17888]
[1728110302701,0.8298,2423.3,2423.2,1.73691811]
[1728110303201,0.8298,2423.3,2423.2,1.17888]
[1728110303597,0.8298,2423.3,2423.2,1.73689746]
[1728110303797,0.8298,2423.3,2423.2,1.44801746]
[1728110304295,1.11867,2423.3,2423.2,1.44801746]
[1728110304999,1.11867,2423.3,2423.2,0.55801746]
[1728110305300,0.8298,2423.3,2423.2,0.55801746]
[1728110305705,1.11867,2423.3,2423.2,0.55801746]
[1728110308396,0.8298,2423.3,2423.2,0.55801746]
[1728110309602,0.8298,2423.3,2423.2,0.84689746]
[1728110310203,0.8298,2423.3,2423.1,1.56709]
[1728110310400,0.8298,2423.3,2423.2,0.55806656]
[1728110310706,0.8298,2423.3,2423.2,0.84694656]
[1728110311698,1.11867,2423.3,2423.2,0.55806656]
[1728110316305,0.8298,2423.3,2422.9,2.65351928]
[1728110316499,0.68279,2423.2,2422.9,1.57411]
[1728110316701,0.68279,2423.2,2423.0,1.45088935]
[1728110316900,0.68279,2423.2,2423.1,0.55803766]
[1728110319812,0.68279,2423.2,2423.1,0.55805685]
[1728110320110,0.68279,2423.2,2423.1,0.55804998]
[1728110322906,0.3939,2423.2,2422.9,1.57412]
[1728110323106,0.2889,2423.1,2422.9,1.2852]
[1728110323316,0.2889,2423.1,2423.0,1.45113581]
[1728110323903,0.2889,2423.1,2423.0,0.55812922]
[1728110325805,0.3939,2423.2,2422.8,1.17893]
[1728110326013,1.07562,2423.0,2422.9,0.55826041]
[1728110329517,1.07562,2423.0,2422.8,0.89]
[1728110329716,1.07562,2423.0,2422.9,0.55815275]
[1728110329908,1.07562,2423.0,2422.9,1.11630545]
[1728110330110,1.07562,2423.0,2422.9,0.5581527]
[1728110331818,1.07562,2423.0,2422.9,0.55807917]
[1728110332411,0.28892,2422.9,2422.8,0.89]
[1728110332613,0.28892,2422.9,2422.8,1.44804101]
[1728110333012,0.28892,2422.9,2422.8,0.55804101]
[1728110335015,0.28892,2422.9,2422.8,0.55799192]
[1728110335919,0.7867,2423.0,2422.8,1.44799192]
[1728110336116,0.7867,2423.0,2422.9,0.28892]
[1728110338225,1.07561,2423.0,2422.8,1.98582]
[1728110338521,0.7867,2423.0,2422.9,0.28892]
[1728110338726,0.2889,2423.1,2422.9,0.28892]
[1728110339221,3.2078,2423.2,2423.0,1.2829]
[1728110339423,0.2889,2423.1,2423.0,1.2829]
[1728110343029,4.0368,2423.4,2423.0,1.2829]
[1728110343229,0.28889,2423.2,2423.0,1.2829]
[1728110343424,0.28889,2423.2,2423.1,0.55796507]
[1728110344422,0.28889,2423.2,2422.8,0.8069]
[1728110344423,5.0172,2423.2,2422.8,0.8069]
[1728110344624,0.28891,2423.0,2422.9,0.55806549]
[1728110345226,0.28891,2423.0,2422.7,1.57604]
[1728110345425,0.28891,2423.0,2422.8,1.74006473]
[1728110345626,0.28891,2423.0,2422.9,0.55811447]
[1728110346833,0.7778,2423.1,2422.9,0.55811447]
[1728110346834,1.0667,2423.1,2422.9,0.55811447]
[1728110347028,1.0667,2423.1,2422.8,0.28892]
[1728110347029,1.0667,2423.1,2423.0,0.55811447]
[1728110348332,0.7778,2423.1,2422.7,2.65543928]
[1728110348533,0.28891,2423.0,2422.8,0.55819264]
[1728110348720,0.28891,2423.0,2422.9,0.55819264]
[1728110348928,0.28891,2423.0,2422.9,0.55820098]
[1728110351627,0.28891,2423.0,2422.9,1.45168394]
[1728110353331,0.28891,2423.0,2422.9,1.45188409]
[1728110354433,0.28891,2423.0,2422.9,0.55820098]
[1728110355229,0.28891,2423.0,2422.7,1.2871]
[1728110355433,0.7778,2423.1,2422.8,1.74136973]
[1728110355434,1.06671,2423.1,2422.8,1.74136973]
[1728110355732,0.28891,2423.0,2422.9,1.45241134]
[1728110356129,1.0667,2423.1,2422.9,1.45241134]
[1728110356326,1.0667,2423.1,2423.0,0.55860227]
[1728110356636,1.0667,2423.1,2423.0,0.97210227]
[1728110359035,1.0667,2423.1,2423.0,0.55868801]
[1728110362040,0.28892,2423.0,2422.8,0.4186]
[1728110362342,0.28892,2423.0,2422.9,1.45283967]
[1728110365141,0.7778,2423.1,2422.7,1.96940928]
[1728110365440,0.67402,2422.9,2422.8,1.45326813]
[1728110368639,0.67402,2422.9,2422.8,1.45321527]
[1728110368839,0.67402,2422.9,2422.7,1.07940928]
[1728110369040,0.8199,2422.8,2422.7,1.07940928]
[1728110369342,0.8199,2422.8,2422.7,2.5323487]
[1728110369542,0.8199,2422.8,2422.7,1.45293942]
[1728110369950,0.8199,2422.8,2422.7,3.7112887]
[1728110370244,0.3851,2422.9,2422.7,5.74113269]
[1728110370436,0.28891,2423.0,2422.8,2.53237935]
[1728110370745,0.28891,2423.0,2422.9,1.45293942]
[1728110372043,0.28891,2423.0,2422.9,1.45320386]
[1728110373735,1.1676,2423.1,2422.9,2.34320386]
[1728110373942,3.2078,2423.2,2423.1,0.2889]
[1728110374141,3.2078,2423.2,2423.1,1.74210386]
[1728110374448,3.2078,2423.2,2423.1,2.82154379]
[1728110375954,0.28888,2423.3,2423.1,2.82154379]
[1728110376246,0.28888,2423.3,2423.2,1.45320386]
[1728110377146,1.176,2423.5,2423.2,2.63208386]
[1728110377452,1.46485,2423.5,2423.3,0.55892456]
[1728110377654,1.46485,2423.5,2423.4,0.55892456]
[1728110378255,1.176,2423.5,2423.4,0.55892456]
[1728110379145,1.46485,2423.5,2423.4,0.55892456]
[1728110380354,1.176,2423.5,2423.4,0.55892456]
[1728110380557,1.46485,2423.5,2423.4,0.55892456]
[1728110381961,1.46485,2423.5,2423.4,0.55788794]
[1728110383262,1.176,2423.5,2423.4,0.55788794]
[1728110383466,1.176,2423.5,2423.4,0.84674794]
[1728110383764,1.176,2423.5,2423.4,0.55788794]
[1728110384558,1.46485,2423.5,2423.4,0.55788794]
[1728110384755,1.176,2423.5,2423.4,0.55788794]
[1728110386970,3.49662,2423.7,2423.4,0.84673794]
[1728110387167,0.4185,2423.6,2423.5,0.55788794]
[1728110387366,3.2078,2423.7,2423.5,1.73673794]
[1728110387564,3.2078,2423.7,2423.5,1.17885]
[1728110387768,3.2078,2423.7,2423.6,0.3879]
[1728110388468,3.49662,2423.7,2423.6,0.3879]
[1728110388662,3.6111,2423.7,2423.6,0.3879]
[1728110388870,3.89992,2423.7,2423.6,0.3879]
[1728110389267,3.6111,2423.7,2423.6,0.3879]
[1728110389472,3.89992,2423.7,2423.6,0.3879]
[1728110389767,3.6111,2423.7,2423.6,0.3879]
[1728110390268,3.89992,2423.7,2423.6,0.3879]
[1728110390569,3.89992,2423.7,2423.5,0.89]
[1728110390779,3.6111,2423.7,2423.5,0.89]
[1728110390967,3.89993,2423.7,2423.5,0.89]
[1728110391378,0.28884,2423.6,2423.5,0.89]
[1728110391870,3.6111,2423.7,2423.4,1.57296]
[1728110392076,3.89993,2423.7,2423.5,1.44712719]
[1728110392274,3.89993,2423.7,2423.5,0.89]
[1728110392478,0.28884,2423.6,2423.4,0.68295]
[1728110392779,0.28884,2423.6,2423.5,0.55706456]
[1728110393271,0.28884,2423.6,2423.4,1.57295]
[1728110394675,0.28884,2423.6,2423.5,0.28885]
[1728110396872,0.28884,2423.6,2423.4,1.57295]
[1728110399174,0.8048,2423.5,2423.4,1.57295]
[1728110399373,0.8048,2423.5,2423.4,2.12978118]
[1728110400776,0.8048,2423.5,2423.4,0.55683118]
[1728110400777,1.09365,2423.5,2423.4,0.55683118]
[1728110400976,0.8048,2423.5,2423.2,0.25514227]
[1728110401177,0.4026,2423.4,2423.1,1.3035]
[1728110401382,0.28888,2423.3,2423.1,1.59239]
[1728110401578,0.8015,2423.2,2423.1,1.59239]
[1728110401783,0.8015,2423.2,2423.1,3.04030319]
[1728110401980,0.8015,2423.2,2423.1,7.16750319]
[1728110402182,0.8015,2423.2,2423.1,3.04030319]
[1728110404692,1.09038,2423.2,2423.1,1.44791319]
[1728110404987,1.09038,2423.2,2422.8,0.28893]
[1728110404988,0.28891,2423.0,2422.8,0.28893]
[1728110405185,0.28891,2423.0,2422.8,1.17893]
[1728110405387,0.4038,2423.1,2422.8,0.89]
[1728110405777,0.28892,2423.0,2422.8,1.17893]
[1728110406182,0.6927,2423.1,2422.9,0.28892]
[1728110406383,0.28891,2423.0,2422.8,1.17893]
[1728110406990,0.28892,2422.9,2422.8,0.89]
[1728110407689,0.28893,2422.8,2422.7,3.49674]
[1728110407989,0.28893,2422.8,2422.7,4.38674]
[1728110407990,1.2263,2422.8,2422.7,4.38674]
[1728110409991,1.51523,2422.8,2422.7,3.2078]
[1728110410494,1.2263,2422.8,2422.7,3.2078]
[1728110411194,1.2263,2422.8,2422.7,3.49674]
[1728110411887,1.2263,2422.8,2422.7,3.2078]
[1728110412489,1.51523,2422.8,2422.7,3.2078]
[1728110413295,1.2263,2422.8,2422.7,4.38674]
[1728110415083,1.2263,2422.8,2422.7,4.0978]
[1728110415297,1.2263,2422.8,2422.7,4.38674]
[1728110416985,1.2263,2422.8,2422.7,4.0978]
[1728110417189,1.2263,2422.8,2422.7,4.38674]
[1728110417893,1.2263,2422.8,2422.7,4.0978]
[1728110418094,1.2263,2422.8,2422.7,4.38674]
[1728110420092,1.2263,2422.8,2422.7,1.17894]
[1728110420394,1.2263,2422.8,2422.7,4.38674]
[1728110422893,1.51523,2422.8,2422.7,4.38674]
[1728110423094,1.51523,2422.8,2422.7,4.0978]
[1728110423600,1.51523,2422.8,2422.7,4.5195]
[1728110423798,1.51523,2422.8,2422.7,1.3117]
[1728110423999,1.51523,2422.8,2422.7,4.5195]
[1728110424298,1.51523,2422.8,2422.7,4.80844]
[1728110424503,1.51523,2422.8,2422.7,1.3117]
[1728110424794,1.51523,2422.8,2422.7,4.5195]
[1728110424998,1.51523,2422.8,2422.7,4.0978]
[1728110425590,1.51523,2422.8,2422.7,3.2078]
[1728110426396,1.2263,2422.8,2422.7,3.2078]
[1728110426591,1.2263,2422.8,2422.7,3.49674]
[1728110426798,1.2263,2422.8,2422.7,4.38674]
[1728110427295,1.2263,2422.8,2422.7,1.17894]
[1728110427504,1.51523,2422.8,2422.7,4.38674]
[1728110428004,1.51523,2422.8,2422.7,4.0978]
[1728110428403,1.51523,2422.8,2422.7,3.2078]
[1728110428913,0.28896,2422.6,2422.5,0.3891]
[1728110429906,0.28895,2422.7,2422.5,1.56806]
[1728110430213,1.51524,2422.8,2422.6,0.28896]
[1728110430508,1.51524,2422.8,2422.6,1.17896]
[1728110430996,1.2263,2422.8,2422.6,0.89]
[1728110431197,0.28894,2422.7,2422.6,0.89]
[1728110431493,1.51524,2422.8,2422.6,1.17895]
[1728110433601,1.51524,2422.8,2422.6,0.28895]
[1728110435506,1.2263,2422.8,2422.5,1.2791]
[1728110435694,0.28895,2422.7,2422.5,1.56807]
[1728110437595,1.2263,2422.8,2422.5,1.2791]
[1728110437809,1.51524,2422.8,2422.6,0.28896]
[1728110438003,1.2263,2422.8,2422.7,0.28894]
[1728110439002,0.28893,2422.9,2422.7,0.28894]
[1728110439799,0.28893,2422.9,2422.8,0.3876]
[1728110440403,1.1961,2423.0,2422.8,0.3876]
[1728110440602,4.12195,2423.5,2422.8,1.2776]
[1728110440910,0.28888,2423.3,2423.1,0.28889]
[1728110441306,1.216,2423.4,2423.1,0.3876]
[1728110441604,1.50487,2423.4,2423.1,0.67649]
[1728110441798,0.28887,2423.3,2423.1,0.3876]
[1728110442000,0.28887,2423.3,2423.1,0.67649]
[1728110444607,1.216,2423.4,2423.1,0.67649]
[1728110444809,0.28887,2423.3,2423.1,0.67649]
[1728110445307,1.216,2423.4,2423.1,0.67649]
[1728110445308,1.50486,2423.4,2423.2,1.17888]
[1728110446010,0.28887,2423.3,2423.2,0.89]
[1728110446202,1.216,2423.4,2423.2,1.44732055]
[1728110446404,1.216,2423.4,2423.2,0.89]
[1728110446604,1.216,2423.4,2423.3,0.28887]
[1728110447909,0.8177,2423.4,2423.3,0.84614717]
[1728110448315,1.10656,2423.4,2423.3,0.55727717]
[1728110448814,1.10656,2423.4,2423.2,1.17888]
[1728110449008,1.7077,2423.4,2423.0,3.45231228]
[1728110449309,1.7077,2423.4,2423.1,0.84624849]
[1728110449310,0.28888,2423.3,2423.1,0.84624849]
[1728110449510,1.7077,2423.4,2423.0,3.2078]
[1728110449814,1.7077,2423.4,2422.8,2.06226622]
[1728110449815,1.59438,2423.2,2423.1,0.55755852]
[1728110450001,1.3055,2423.2,2422.8,0.28892]
[1728110450201,0.2889,2423.1,2422.9,1.4500418]
[1728110450400,1.3055,2423.2,2422.7,1.47856622]
[1728110450401,0.8086,2423.0,2422.7,1.47856622]
[1728110450606,0.8086,2423.0,2422.8,1.45006048]
[1728110450607,1.6986,2423.0,2422.8,1.45006048]
[1728110450811,1.6986,2423.0,2422.7,1.76749622]
[1728110450812,0.70442,2422.9,2422.7,0.28894]
[1728110451013,1.59442,2422.9,2422.8,1.45022728]
[1728110451202,1.59442,2422.9,2422.8,0.55777972]
[1728110452510,0.70442,2422.9,2422.8,0.55777972]
[1728110452913,0.4155,2422.9,2422.8,0.55786858]
[1728110453116,0.70442,2422.9,2422.8,0.55786858]
[1728110453313,0.70442,2422.9,2422.6,3.2078]
[1728110453314,1.3055,2422.9,2422.6,3.2078]
[1728110453619,0.70443,2422.9,2422.7,0.55792585]
[1728110453818,0.70443,2422.9,2422.8,0.55792585]
[1728110455613,0.4155,2422.9,2422.8,0.55792585]
[1728110455817,0.4155,2422.9,2422.8,0.84685585]
[1728110456119,0.3916,2423.0,2422.9,0.28892]
[1728110456415,3.49669,2423.2,2423.0,0.2889]
[1728110456622,3.91599,2423.2,2423.0,0.6842]
[1728110457521,3.6271,2423.2,2423.0,0.6842]
[1728110457822,3.6271,2423.2,2422.8,1.17893]
[1728110457823,0.2889,2423.1,2422.8,1.17893]
[1728110458018,0.2889,2423.1,2422.9,0.55776142]
[1728110458213,0.4138,2423.0,2422.8,1.2904]
[1728110458419,0.4138,2423.0,2422.9,0.55775589]
[1728110458923,0.4138,2423.0,2422.9,0.84667589]
[1728110459325,0.4138,2423.0,2422.9,0.55775589]
[1728110459816,0.4138,2423.0,2422.8,0.68933]
[1728110460325,0.70271,2423.0,2422.9,0.55776437]
[1728110460726,1.59271,2423.0,2422.9,0.55776437]
[1728110462130,1.3038,2423.0,2422.6,3.2078]
[1728110462319,0.89,2422.8,2422.7,0.55798667]
[1728110462516,1.17893,2422.8,2422.6,3.2078]
[1728110462821,1.09664,2422.7,2422.6,3.2078]